Cogmind - Beta 15 @@@ ROGUE MODE // 2025.10.07 @ 09:30:19 Player: shapeshifter Result: Destroyed by P-60 Hacker with Shock Rifle Performance ------------- Evolutions (2) 1000 Regions Visited (8) 1600 Robots Destroyed (37) 185 Value Destroyed (2117) 2117 Prototype IDs (26) 520 Alien Tech Used (0) 0 Bonus (1780) 1780 TOTAL SCORE: 7202 Bonus ------- High Alert Combat Kills 55 Follower Combat Kills 25 Entered Garrisons 400 Used RIF Installer 1000 Aligned with FarCom 300 Cogmind --------- Core Integrity 0/550 Matter 258/300 Energy 247/350 System Corruption 24% Temperature Cool (18) Movement Core (150) Ox2 Location -8/Garrison Parts ------- > --- POWER (1) -------- (None) > --- PROPULSION (2) --- (None) > --- UTILITY (5) ------ Lightpack 2.0 High-capacity Battery Improved Targeting Computer > --- WEAPON (3) ------- (None) > --- INVENTORY (40) --- Flying Fortress v7 Modified TNC Authchip [R/Combat] Authchip [R/Combat] Authchip [R/Combat] Authchip [R/Combat] Authchip [R/Combat] Authchip [R/Combat] Authchip [R/Combat] Authchip [R/Combat] Authchip [R/Combat] Authchip [R/Combat] Authchip [R/Combat] Authchip [R/Combat] Authchip [R/Combat] Relay Coupler [NC] (41) Relay Coupler [NC] (41) Relay Coupler [NC] (40) Relay Coupler [Swarmer] (32) Relay Coupler [Grunt] (32) Relay Coupler [Grunt] (31) Relay Coupler [Duelist] (33) Relay Coupler [Sentry] (31) Relay Coupler [Sentry] (32) Relay Coupler [Behemoth] (13) Advanced EMP Blaster Advanced EMP Blaster Advanced EMP Blaster Peak State ------------ > --- POWER ------------ Light Deuterium Engine > --- PROPULSION ------- Light Treads Light Treads > --- UTILITY ---------- Lightpack 2.0 Improved Targeting Computer Medium Reflective Plating > --- WEAPON ----------- Lightning Gun Lightning Gun Advanced EMP Blaster > --- INVENTORY -------- Flying Fortress v7 High-capacity Battery Modified TNC Medium Reflective Plating Authchip [R/Combat] Authchip [R/Combat] Authchip [R/Combat] Authchip [R/Combat] Authchip [R/Combat] Authchip [R/Combat] Authchip [R/Combat] Authchip [R/Combat] Authchip [R/Combat] Authchip [R/Combat] Authchip [R/Combat] Authchip [R/Combat] Authchip [R/Combat] Relay Coupler [NC] Relay Coupler [NC] Relay Coupler [NC] Relay Coupler [Swarmer] Relay Coupler [Grunt] Relay Coupler [Duelist] Relay Coupler [Sentry] Relay Coupler [Sentry] Relay Coupler [Behemoth] Lightning Gun Lightning Gun Advanced EMP Blaster Advanced EMP Blaster Proton Missile Launcher [Rating: 67] Favorites ----------- Power Ion Engine Engine Ion Engine Propulsion Armored Wheel Treads Light Treads Wheel Armored Wheel Utility Seismic Detector Device Seismic Detector Storage High-capacity Storage Unit Processor Improved Targeting Computer Protection Medium Reflective Plating Weapon Assault Rifle Energy Gun Lightning Gun Ballistic Gun Assault Rifle Ballistic Cannon Flak Cannon Launcher Advanced EMP Blaster Build | -11 -10 -10 -10 -9 -8 -8 -8 -8 ------- Run | Yrd Mat Min Exi Min Mat Gar Mat Gar Slots Evolved 4 | . . . . . 4 . . . Power . | . . . . . . . . . Propulsion . | . . . . . . . . . Utility 3 | . . . . . 3 . . . Weapon 1 | . . . . . 1 . . . Parts Attached 46 | 7 4 . 2 1 8 19 . 5 Power 4 | 1 . . 1 1 . 1 . . Engine 4 | 1 . . 1 1 . 1 . . Core . | . . . . . . . . . Reactor . | . . . . . . . . . Propulsion 8 | 2 2 . . . . 4 . . Treads 4 | 2 . . . . . 2 . . Leg . | . . . . . . . . . Wheel 4 | . 2 . . . . 2 . . Hover . | . . . . . . . . . Flight . | . . . . . . . . . Utility 16 | 2 1 . 1 . 3 8 . 1 Device 4 | 1 . . . . 1 2 . . Storage 5 | 1 1 . 1 . . 2 . . Processor 3 | . . . . . 2 1 . . Hackware . | . . . . . . . . . Protection 4 | . . . . . . 3 . 1 Artifact . | . . . . . . . . . Weapon 18 | 2 1 . . . 5 6 . 4 Energy Gun 10 | 1 . . . . 3 4 . 2 Energy Cannon . | . . . . . . . . . Ballistic Gun 3 | 1 1 . . . . . . 1 Ballistic Cannon 1 | . . . . . . 1 . . Launcher 4 | . . . . . 2 1 . 1 Special Weapon . | . . . . . . . . . Impact Weapon . | . . . . . . . . . Slashing Weapon . | . . . . . . . . . Piercing Weapon . | . . . . . . . . . Special Melee Weapon . | . . . . . . . . . Unidentified Prototypes 3 | . . . . . 3 . . . Corrupted Parts 1 | . . . . . . . . 1 System Corruption 10 | . . . . . . . . 10 Parts Lost 20 | . . . . . 1 8 . 11 Power 1 | . . . . . . . . 1 Propulsion 5 | . . . . . . 3 . 2 Utility 6 | . . . . . . 4 . 2 Weapon 8 | . . . . . 1 1 . 6 Highest Loss Streak 10 | . . . . . 1 4 . 10 To Critical Strikes . | . . . . . . . . . Average Backups 15 | 3 9 13 15 15 14 16 32 32 Power 1 | . 1 1 2 3 1 . . . Propulsion 2 | 1 2 3 2 3 3 1 1 1 Utility 9 | . 3 7 7 6 5 11 26 26 Weapon 2 | 1 2 2 2 2 3 3 5 5 Tool/Special . | . . . . . . . . . Unused Backups 46 | . 2 . 4 2 4 8 . 26 Power 3 | . . . . . 3 . . . Propulsion 5 | . 2 . 1 . . 1 . 1 Utility 38 | . . . 3 2 1 7 . 25 Weapon . | . . . . . . . . . Tool/Special . | . . . . . . . . . Average Slot Usage (%) 92 | . 99 100 100 100 91 85 81 76 Engine 11 | . 14 14 14 14 9 9 9 8 Treads 7 | . 25 . . . . 6 18 16 Wheel 14 | . 2 28 28 28 18 8 . . Device 10 | . 14 14 14 14 13 7 . . Storage 12 | . 14 14 14 14 9 12 9 9 Processor 5 | . . . . . 17 10 9 9 Protection 3 | . . . . . . 7 9 8 Energy Gun 9 | . 12 . . . 14 17 18 15 Ballistic Gun 13 | . 14 28 28 28 7 . . . Launcher 2 | . . . . . 2 4 9 8 Peak Build Rating 67 | 7 11 11 18 22 40 67 67 67 Average Rating 29 | 5 7 11 13 20 33 44 67 65 On Entrance 26 | . 7 11 11 18 22 39 67 67 Naked Turns . | . . . . . . . . . Heaviest Build 71 | 15 30 30 50 55 63 71 31 32 Greatest Support 40 | 40 40 24 24 24 24 40 40 40 Greatest Overweight (x) 9 | . 9 1 2 2 2 5 . 8 Average Overweight (x) 1 | . . 1 1 2 2 2 . . Largest Inventory Capacity 40 | 8 15 15 20 20 20 40 40 40 Average Capacity 22 | 7 14 15 19 20 20 26 40 40 Most Carried 36 | 6 15 15 20 20 20 36 35 36 Average Carried 18 | 3 9 14 17 19 19 20 35 35 Final Capacity 40 | 8 15 15 20 20 20 40 40 40 Final Carried 35 | 5 13 15 20 20 19 35 35 31 Class Distribution -------------------- 65% | Mutant 16% | Hauler-Skirmisher 10% | Skirmisher 4% | Gunner Dominant Class ---------------- Mutant | -10/Materials Mutant | -10/Mines Mutant | -10/Exiles Mutant | -9/Mines Gunner | -8/Materials Hauler-Skirmisher | -8/Garrison Hauler-Skirmisher | -8/Materials Hauler-Skirmisher | -8/Garrison Resources | -11 -10 -10 -10 -9 -8 -8 -8 -8 ----------- Run | Yrd Mat Min Exi Min Mat Gar Mat Gar Matter Collected 1367 | 294 59 265 69 36 86 478 . 80 Remotely . | . . . . . . . . . Salvage Created 1769 | 64 152 146 . 20 112 992 . 283 Parts 78 | 6 4 5 . 1 4 41 . 17 Haulers Intercepted 3 | . 1 . . . 2 . . . Recyclers Shooed . | . . . . . . . . . Parts Field Recycled . | . . . . . . . . . Retrieved Matter . | . . . . . . . . . Parts Self-Destructed . | . . . . . . . . . Prevented . | . . . . . . . . . Kills | -11 -10 -10 -10 -9 -8 -8 -8 -8 ------- Run | Yrd Mat Min Exi Min Mat Gar Mat Gar Combat Hostiles Destroyed 29 | . 2 3 . . . 19 . 5 Guns 13 | . 2 3 . . . 5 . 3 Cannons 4 | . . . . . . 4 . . AOE 6 | . . . . . . 5 . 1 Classes Destroyed 10 | 2 2 . . . . 5 . 1 Tunneler 2 | 1 . . . 1 . . . . Hauler 3 | . 1 . . . 2 . . . Recycler 1 | 1 . . . . . . . . Watcher 1 | . . . . . . 1 . . Swarmer 3 | . . . . . . . . 3 Grunt 13 | . 2 3 . . . 8 . . Brawler 1 | . . . . . . 1 . . Duelist 1 | . . . . . . 1 . . Sentry 9 | . . . . . . 7 . 2 Programmer 3 | . . . . . . 3 . . Best Kill Streak 5 | 2 2 2 . 1 1 5 . 3 Combat Bots Only 5 | . 2 2 . . . 5 . 3 Max Kills in Single Turn 2 | 1 1 1 . 1 1 2 . 1 Gunslinging . | . . . . . . . . . Exploded 2 | . . . . . . 2 . 1 Melee . | . . . . . . . . . Uniques/NPCs Destroyed . | . . . . . . . . . Combat | -11 -10 -10 -10 -9 -8 -8 -8 -8 -------- Run | Yrd Mat Min Exi Min Mat Gar Mat Gar Hostile Shots Fired 299 | . 15 23 . . . 127 2 132 Missed 72 | . 7 4 . . . 42 . 19 Hits 227 | . 8 19 . . . 85 2 113 Projectile 227 | . 8 19 . . . 85 2 113 Critical Strikes 13 | . 1 . . . . 3 . 9 Part Disruptions 1 | . . . . . . . . 1 Damage Taken 3146 | . 103 229 . . . 1340 24 1450 Core 612 | . 11 46 . . . 215 . 340 Absorbed by Shields 135 | . . . . . . 28 . 107 Ignored by Resistances 140 | . . . . . . 68 3 69 Core Remaining (%) 88 | 100 . . . 77 . . . . Volleys Fired 134 | 8 15 13 . 1 3 67 . 27 Largest 3 | 2 2 2 . 2 3 3 . 2 Hottest 165 | 70 70 40 . 40 122 165 . 110 Shots Fired 231 | 16 30 26 . 2 7 110 . 40 Gun 198 | 16 30 26 . 2 7 87 . 30 Cannon 16 | . . . . . . 16 . . Launcher 17 | . . . . . . 7 . 10 Special . | . . . . . . . . . Kinetic 74 | 8 15 26 . 2 2 16 . 5 Thermal 63 | 8 15 . . . 5 35 . . Explosive . | . . . . . . . . . Electromagnetic 94 | . . . . . . 59 . 35 Robot Hit Streak 27 | 12 20 8 . 3 8 27 . 9 Robot Miss Streak 6 | 2 3 2 . . 1 6 . 2 Penetration Max . | . . . . . . . . . Secondary Targets 2 | . . 1 . . . 1 . . Max Gunslinging Chain 1 | . . 1 . . . 1 . . Shots Hit Robots 157 | 12 23 17 . 1 6 78 . 20 Core Hits 72 | 3 7 6 . 1 3 41 . 11 Critical Kills . | . . . . . . . . . Critical Parts Destroyed 1 | . 1 . . . . . . . Critical Strikes 5 | 1 1 . . . . 2 . 1 Burn 2 | 1 . . . . . 1 . . Destroy 1 | . 1 . . . . . . . Corrupt 2 | . . . . . . 1 . 1 Melee Attacks . | . . . . . . . . . Impact . | . . . . . . . . . Slashing . | . . . . . . . . . Piercing . | . . . . . . . . . Sneak Attacks . | . . . . . . . . . Combat Hostiles . | . . . . . . . . . Follow-up Attacks . | . . . . . . . . . Damage Inflicted 3735 | 147 276 230 . 11 105 2292 . 674 Guns 2224 | 147 276 230 . 11 105 1135 . 320 Cannons 304 | . . . . . . 304 . . Explosions 1207 | . . . . . . 853 . 354 Melee . | . . . . . . . . . Ramming . | . . . . . . . . . Kinetic 857 | 84 126 230 . 11 26 304 . 76 Thermal 930 | 63 150 . . . 79 638 . . Explosive 60 | . . . . . . 60 . . Electromagnetic 1888 | . . . . . . 1290 . 598 Impact . | . . . . . . . . . Slashing . | . . . . . . . . . Piercing . | . . . . . . . . . Highest Corruption 24 | . . . . . . 7 7 24 Average Corruption 6 | . . . . . . 6 7 8 Corruption Purged . | . . . . . . . . . Corruption Blocked . | . . . . . . . . . Effects 55 | . . . . . . 42 1 12 Message Errors 15 | . . . . . . 12 . 3 Matter Fused 12 | . . . . . . 7 . 5 Heat Flow Errors 3 | . . . . . . 3 . . Energy Discharges 10 | . . . . . . 10 . . Parts Rejected 1 | . . . . . . 1 . . Parts Fused 1 | . . . . . . 1 . . Data Loss (minor) 6 | . . . . . . 4 1 1 Data Loss (major) 2 | . . . . . . 2 . . Misfires 1 | . . . . . . 1 . . Weapon Failures 4 | . . . . . . 1 . 3 Overload Shots . | . . . . . . . . . Overflow Damage 14 | . . . . . . 14 . . Projectiles . | . . . . . . . . . Explosions 14 | . . . . . . 14 . . Melee . | . . . . . . . . . Knockbacks 6 | . . . . . . 6 . . Impact . | . . . . . . . . . Kinetic 5 | . . . . . . 5 . . Secondary 1 | . . . . . . 1 . . Self-Inflicted Damage 157 | . . . . . . 137 . 20 Shots 8 | . . . . . . 7 . 1 Rammed . | . . . . . . . . . Targets Rammed . | . . . . . . . . . Kicked . | . . . . . . . . . Crushed . | . . . . . . . . . Highest Temperature 455 | 63 123 9 . . 48 455 . 198 Average Temperature 78 | 29 40 3 . . 22 110 . 59 Received Heat Transfer 846 | . 78 126 . . . 279 9 354 Effects 8 | . . . . . . 8 . . Shutdowns 1 | . . . . . . 1 . . Energy Bleed 2 | . . . . . . 2 . . Interference 3 | . . . . . . 3 . . Matter Decay 1 | . . . . . . 1 . . Short Circuit 1 | . . . . . . 1 . . Siege Activations . | . . . . . . . . . Martial Activations . | . . . . . . . . . Shielding Activations . | . . . . . . . . . Robots Disrupted . | . . . . . . . . . Combat Hostiles . | . . . . . . . . . Robots Corrupted 6 | . . . . . . 4 . 2 Combat Hostiles 5 | . . . . . . 4 . 1 Parts Fried 18 | . . . . . . 12 . 6 Impact Corruptions . | . . . . . . . . . Robots Melted 1 | . . . . . . 1 . . Combat Hostiles 1 | . . . . . . 1 . . Parts Melted 1 | . . 1 . . . . . . Heat Transferred 2038 | 259 444 . . . 173 1162 . . Parts Sabotaged . | . . . . . . . . . Parts Stolen . | . . . . . . . . . Parts Stripped . | . . . . . . . . . Power Chain Reactions 3 | . . . . . . 3 . . Alert | -11 -10 -10 -10 -9 -8 -8 -8 -8 ------- Run | Yrd Mat Min Exi Min Mat Gar Mat Gar Maximum Alert Level 2 | . . . . . . 2 1 2 Low Security (%) 62 | 100 100 100 . 100 100 23 . . Level 1 17 | . . . . . . 23 100 96 Level 2 20 | . . . . . . 53 . 3 Level 3 . | . . . . . . . . . Level 4 . | . . . . . . . . . Level 5 . | . . . . . . . . . High Security . | . . . . . . . . . Max Security . | . . . . . . . . . Peak Influence 669 | 5 42 40 . 5 13 669 325 419 Initial 325 | . . . . . . . 325 204 Average 172 | . 5 12 . . 2 379 323 308 Influence Increases 1208 | 10 79 103 . 5 37 749 . 225 Destroy 0b10 Robot/C 600 | . 40 80 . . . 380 . 100 Destroy 0b10 Robot/NC 40 | 10 5 . . 5 10 5 . 5 Destroy Leader 66 | . 12 20 . . 4 20 . 10 Allied During Kill 5 | . . 3 . . 2 . . . Successful Hack 57 | . 22 . . . 21 14 . . Disable Machine 45 | . . . . . . . . 45 Anti-Garrison Action 300 | . . . . . . 250 . 50 Destroy Structure 80 | . . . . . . 65 . 15 Lose Combat Pursuer 15 | . . . . . . 15 . . Influence Decreases 889 | 10 79 103 . 5 37 80 354 221 Entered New Map 455 | . . . . . . . 344 111 Time Decay 232 | 10 79 91 . 5 37 . 10 . Lost Part 190 | . . . . . . 80 . 110 Lost Ally 12 | . . 12 . . . . . . Squads Dispatched 1 | . . . . 1 . . . . Investigation 1 | . . . . 1 . . . . Extermination . | . . . . . . . . . Reinforcement . | . . . . . . . . . Assault . | . . . . . . . . . Garrison . | . . . . . . . . . Intercept . | . . . . . . . . . Searches Triggered . | . . . . . . . . . Construction Impeded . | . . . . . . . . . Haulers Reinforced . | . . . . . . . . . Active Scanning Responses . | . . . . . . . . . Cargo Convoy Interrupts . | . . . . . . . . . Stealth | -11 -10 -10 -10 -9 -8 -8 -8 -8 --------- Run | Yrd Mat Min Exi Min Mat Gar Mat Gar Distress Signals . | . . . . . . . . . Communications Jammed . | . . . . . . . . . Distress Signals . | . . . . . . . . . Times Spotted 49 | . 8 4 . . 3 20 1 13 Peak Tracking Total 8 | . 4 2 . . 3 4 1 8 Tactical Retreats 1 | . . . . . . 1 . . Traps | -11 -10 -10 -10 -9 -8 -8 -8 -8 ------- Run | Yrd Mat Min Exi Min Mat Gar Mat Gar Traps Triggered 13 | . 1 . . . . 6 . 6 Indirectly 8 | . . . . . . 3 . 5 Trap Hack Attempts . | . . . . . . . . . Triggered . | . . . . . . . . . Disarmed . | . . . . . . . . . Reprogrammed . | . . . . . . . . . Reused . | . . . . . . . . . Traps Extracted . | . . . . . . . . . Installed . | . . . . . . . . . Triggered . | . . . . . . . . . Machines | -11 -10 -10 -10 -9 -8 -8 -8 -8 ---------- Run | Yrd Mat Min Exi Min Mat Gar Mat Gar Machines Disabled 8 | . . . . . . 4 . 4 Max in Single Turn 2 | . . . . . . 2 . 2 Garrison Relay 3 | . . . . . . 2 . 1 Phase Generator 1 | . . . . . . 1 . . Machines Repaired . | . . . . . . . . . Machines Dismantled . | . . . . . . . . . Machines Sabotaged . | . . . . . . . . . Overloaded Fab Kills . | . . . . . . . . . Hacking | -11 -10 -10 -10 -9 -8 -8 -8 -8 --------- Run | Yrd Mat Min Exi Min Mat Gar Mat Gar Machines Accessed 14 | . 4 . 2 2 3 2 1 . Terminals 9 | . 4 . . 1 2 2 . . Fabricators . | . . . . . . . . . Repair Stations . | . . . . . . . . . Recycling Units . | . . . . . . . . . Scanalyzers . | . . . . . . . . . Garrison Access 2 | . . . . . 1 . 1 . Total Hacks 28 | . 8 . 2 2 12 3 1 . Successful 18 | . 4 . 2 1 8 2 1 . Failed 10 | . 4 . . 1 4 1 . . Catastrophic . | . . . . . . . . . Database Lockouts . | . . . . . . . . . Manual 15 | . 8 . 1 . 6 . . . Terminals 23 | . 8 . . 1 11 3 . . Fabricators . | . . . . . . . . . Repair Stations . | . . . . . . . . . Recycling Units . | . . . . . . . . . Scanalyzers . | . . . . . . . . . Garrison Access 2 | . . . . . 1 . 1 . Terminal Hacks 9 | . . . 2 1 4 2 . . Record 1 | . . . 1 . . . . . Robot Analysis 2 | . . . . . 2 . . . Open Door 1 | . . . . 1 . . . . Emergency Access Points 1 | . . . . . . 1 . . Alert Level 1 | . . . . . 1 . . . Locate Traps 1 | . . . . . 1 . . . Garrison Registry 1 | . . . . . . 1 . . Proto ID Catalog 1 | . . . 1 . . . . . Fabricator Hacks . | . . . . . . . . . Repair Station Hacks . | . . . . . . . . . Recycling Unit Hacks . | . . . . . . . . . Scanalyzer . | . . . . . . . . . Garrison Access Hacks 2 | . . . . . 1 . 1 . Unlock Access 2 | . . . . . 1 . 1 . Unauthorized Hacks 7 | . 4 . . . 3 . . . Terminals 7 | . 4 . . . 3 . . . Botnet 2 | . 1 . . . 1 . . . Skim 5 | . 3 . . . 2 . . . Fabricators . | . . . . . . . . . Repair Stations . | . . . . . . . . . Recycling Units . | . . . . . . . . . Scanalyzers . | . . . . . . . . . Garrison Access . | . . . . . . . . . Data Cores Recovered . | . . . . . . . . . Used . | . . . . . . . . . Hacking Detections 8 | . 3 . . 1 3 1 . . Full Trace Events . | . . . . . . . . . Feedback Events . | . . . . . . . . . Feedback Blocked . | . . . . . . . . . Robot Schematics Acquired . | . . . . . . . . . Robots Built . | . . . . . . . . . Authchips . | . . . . . . . . . Time . | . . . . . . . . . Total Robot Build Rating . | . . . . . . . . . Part Schematics Acquired . | . . . . . . . . . Parts Built . | . . . . . . . . . Authchips . | . . . . . . . . . Time . | . . . . . . . . . Total Part Build Rating . | . . . . . . . . . Parts Repaired . | . . . . . . . . . Time . | . . . . . . . . . Parts Recycled . | . . . . . . . . . Recycled Matter . | . . . . . . . . . Retrieved Matter . | . . . . . . . . . Retrieved Components . | . . . . . . . . . Parts Scanalyzed . | . . . . . . . . . Part Schematics Acquired . | . . . . . . . . . Parts Damaged . | . . . . . . . . . Bothacking | -11 -10 -10 -10 -9 -8 -8 -8 -8 ------------ Run | Yrd Mat Min Exi Min Mat Gar Mat Gar Used RIF Installer 2 | . . . . . . 2 . . Robot Detection 1 | . . . . . . 1 . . Robots Hacked . | . . . . . . . . . Non-combat . | . . . . . . . . . Combat . | . . . . . . . . . Robot Hacks Applied . | . . . . . . . . . Relay Couplers Released 11 | . . . . . . 8 . 3 Machine Destruction 11 | . . . . . . 8 . 3 Fabnet Peak Effective % . | . . . . . . . . . Robots Rewired . | . . . . . . . . . Allies Hacked . | . . . . . . . . . Hacks Repelled . | . . . . . . . . . Allies | -11 -10 -10 -10 -9 -8 -8 -8 -8 -------- Run | Yrd Mat Min Exi Min Mat Gar Mat Gar Total Allies 5 | . . 3 . 2 . . . . Largest Group 3 | . . 3 1 3 3 1 . . Highest-Rated Group 51 | . . 40 8 51 51 8 . . Highest-Rated Ally 31 | . . 16 8 31 31 8 . . Total Orders . | . . . . . . . . . Ally Attacks 15 | . . 14 . . 1 . . . Total Damage 123 | . . 123 . . . . . . Kills 1 | . . 1 . . . . . . Allies Corrupted . | . . . . . . . . . Allies Melted . | . . . . . . . . . Intel | -11 -10 -10 -10 -9 -8 -8 -8 -8 ------- Run | Yrd Mat Min Exi Min Mat Gar Mat Gar Active Infowar (turns) 2569 | 25 577 273 528 830 281 55 . . Seismic 2569 | 25 577 273 528 830 281 55 . . Robot Analysis Total 2 | . . . . . 2 . . . Derelict Logs Recovered 1 | . . . . 1 . . . . Drone Launches . | . . . . . . . . . Drone Recoveries . | . . . . . . . . . Exploration | -11 -10 -10 -10 -9 -8 -8 -8 -8 ------------- Run | Yrd Mat Min Exi Min Mat Gar Mat Gar Turns Passed 4441 | 124 577 273 528 830 281 1473 23 332 Spaces Moved 2717 | 56 316 207 434 649 194 715 14 132 Core 10 | 7 2 . . . . . . 1 Treads 692 | 49 276 . . . . 222 14 131 Legs . | . . . . . . . . . Wheels 2015 | . 38 207 434 649 194 493 . . Hover . | . . . . . . . . . Flight . | . . . . . . . . . Fastest Speed 50 | 50 105 105 105 120 120 120 160 160 Average Speed 136 | 146 155 105 117 120 120 160 160 162 Slowest Speed 500 | 160 500 105 120 120 120 240 160 450 Overloaded Moves . | . . . . . . . . . Propulsion Burnouts . | . . . . . . . . . Robots Hopped . | . . . . . . . . . Potential Cave-ins . | . . . . . . . . . Cave-ins Triggered . | . . . . . . . . . Exploration Rate (%) 44 | 4 58 54 69 96 19 72 3 27 Regions Visited 8 Branch Regions 3 Pre-discovered Areas 1 | . . . 1 . . . . . Known Exits Taken 2 | . . . . . 1 . 1 . Unknown Exits Taken 5 | 1 1 1 1 1 . . . . Scrap Searched 2 | . . 1 . 1 . . . . Spaces Dug . | . . . . . . . . . Terrain Destroyed 75 | . . . . . . 75 . . Melee . | . . . . . . . . . Projectile . | . . . . . . . . . AOE 75 | . . . . . . 75 . . Terrain Rammed . | . . . . . . . . . Walls Destroyed . | . . . . . . . . . Machines Disabled . | . . . . . . . . . Actions | -11 -10 -10 -10 -9 -8 -8 -8 -8 --------- Run | Yrd Mat Min Exi Min Mat Gar Mat Gar Total 3246 | 82 372 236 457 699 237 944 14 205 Wait 170 | . 13 16 6 44 15 43 . 33 Move 2711 | 55 315 206 433 648 194 714 14 132 Hop . | . . . . . . . . . Pick Up 97 | 12 16 1 8 2 8 47 . 3 Fast Attach 18 | . 1 . . . 4 13 . . Attach 32 | 7 5 . . . 5 10 . 5 Detach 2 | . . . . . . 2 . . Swap 10 | . 1 . 2 1 . 5 . 1 Drop 53 | . 6 . 8 3 8 27 . 1 Fire 134 | 8 15 13 . 1 3 67 . 27 Melee . | . . . . . . . . . Ram . | . . . . . . . . . Kick . | . . . . . . . . . Crush . | . . . . . . . . . Escape Stasis 19 | . . . . . . 16 . 3 Rewire . | . . . . . . . . . Trap . | . . . . . . . . . Miscellaneous . | . . . . . . . . . Route ------- -11/Scrapyard -10/Materials (discovered 2 exits: [*Mat] / [*Min]) -10/Mines (discovered 3 exits: [*Mat x2] / *Exi) -10/Exiles -9/Mines (discovered 2 exits: *Mat x2) -8/Materials (discovered 2 exits: Fac / Gar) -8/Garrison (discovered 4 exits: *Mat x4) -8/Materials -8/Garrison History --------- Turn | Location | Event 9 | -11/Scrapyard | Discovered new exit (range 15) 125 | -11/Scrapyard | Entered Materials 308 | -10/Materials | Build established: Mutant 351 | -10/Materials | Discovered new exit (range 16) 664 | -10/Materials | Discovered new exit (range 14) 702 | -10/Materials | Entered Mines 814 | -10/Mines | Discovered new exit (range 9) 817 | -10/Mines | Assisted by bots powering up and referring to "LRC-V3" 896 | -10/Mines | Discovered new exit (range 15) 958 | -10/Mines | Assembled infested the area 966 | -10/Mines | Deemed a non-threat by the Exiles lab entrance 967 | -10/Mines | Discovered new exit (range 5) 975 | -10/Mines | Entered Exiles 975 | -10/Exiles | Accompanied by 1 ally 1001 | -10/Exiles | Met 8R-AWN 1019 | -10/Exiles | Met EX-HEX 1208 | -10/Exiles | Met EX-DEC 1228 | -10/Exiles | Learned location of Zion (-6) 1309 | -10/Exiles | Met EX-BIN 1325 | -10/Exiles | Aligned with FarCom system 1327 | -10/Exiles | Given EX-Vault access code 1354 | -10/Exiles | Opened EX-Vault 1364 | -10/Exiles | Found Flying Fortress v7 1377 | -10/Exiles | Found Modified TNC 1380 | -10/Exiles | Found Lightpack 2.0 1406 | -10/Exiles | Warned to stay clear of 0b10 Research branches 1485 | -10/Exiles | Discovered new exit (range 11) 1503 | -10/Exiles | Stole three prototypes: Flying Fortress v7, Lightpack 2.0, Modified TNC 1503 | -10/Exiles | Entered Mines 1503 | -9/Mines | Accompanied by 1 ally 1543 | -9/Mines | Met a Derelict bent on vengeance 1725 | -9/Mines | Met a Derelict shopkeep closing up shop 2025 | -9/Mines | Learned location of 1 exit from Materials 2266 | -9/Mines | Discovered new exit (range 11) 2305 | -9/Mines | Discovered new exit (range 10) 2333 | -9/Mines | Entered Materials 2333 | -8/Materials | Accompanied by 3 allies 2333 | -8/Materials | Evolved 4 slots: Utility x3, Weapon x1 2334 | -8/Materials | Identified exit to Factory 2338 | -8/Materials | Led the pair of lost Derelicts to an unsafe place 2609 | -8/Materials | Identified exit to Garrison 2614 | -8/Materials | Entered Garrison 2614 | -8/Garrison | Accompanied by 1 ally 2643 | -8/Garrison | Phase Generator disabled 2709 | -8/Garrison | Lost 4 parts (2n2u) 2956 | -8/Garrison | Triggered checkpoint 2994 | -8/Garrison | Triggered checkpoint 3031 | -8/Garrison | Installed Relay Interface Framework 3087 | -8/Garrison | Garrison Relay disabled 3113 | -8/Garrison | Build established: Skirmisher 3277 | -8/Garrison | Triggered checkpoint 3384 | -8/Garrison | Discovered new exit (range 15) 3411 | -8/Garrison | Discovered new exit (range 60) 3411 | -8/Garrison | Discovered new exit (range 7) 3411 | -8/Garrison | Discovered new exit (range 90) 3411 | -8/Garrison | Discovered new exit (range 63) 3558 | -8/Garrison | Expanded RIF knowledge: Robot Detection 3593 | -8/Garrison | Build established: Mutant 3738 | -8/Garrison | Triggered checkpoint 3904 | -8/Garrison | Build established: Hauler-Skirmisher 4076 | -8/Garrison | Garrison Relay disabled 4087 | -8/Garrison | Entered Materials 4110 | -8/Materials | Identified exit to Garrison 4110 | -8/Materials | Entered Garrison 4182 | -8/Garrison | Triggered checkpoint 4212 | -8/Garrison | Garrison Relay disabled 4368 | -8/Garrison | Triggered checkpoint 4372 | -8/Garrison | Triggered checkpoint 4404 | -8/Garrison | Triggered checkpoint 4412 | -8/Garrison | System corruption reached 10% 4425 | -8/Garrison | Core integrity fell below 50% 4440 | -8/Garrison | Core integrity fell below 20% 4442 | -8/Garrison | Destroyed by P-60 Hacker with Shock Rifle Last Messages --------------- 04418_ Field strength at 94. 04422_ P-60 Hacker resets Y-45 Defender, system corruption cleaned. 04422_ System corrupted: Proton Missile Launcher failed to launch. 04428_ Lgt. Deuterium Engine destroyed. 04429_ Lgt. Treads destroyed. 04430_ Field strength at 10. 04431_ MAHAP 2Z3XF6Z 04431_ Stasis Trap short circuited. 04431_ Stasis field depleted. 04431_ A bubble of rippling energy engulfs the area. 04431_ P-60 Hacker resets P-60 Hacker, system corruption cleaned. 04432_ Proton Missile Launcher destroyed. 04432_ Med. Reflective Plating destroyed. 04433_ Hvy. Assault Rifle destroyed. 04434_ P-60 Hacker resets P-60 Hacker, system corruption cleaned. 04435_ Critical hit (Burn: +37). 04438_ System corrupted: Lightning Gun failed to cycle. 04438_ Lightning Gun destroyed. 04441_ Y-45 Defender IFF system glitched. 04441_ P-60 Hacker resets Y-45 Defender, system corruption cleaned. Map ----- +----------------------------------------------------+ | ?????????????????????????######==%#?????????# # | | ?????????????????????????#==*%"%[*#?????????# # | | ?????????????????????????#!####%%=#?????????# # | | ?????????????????????????# #??###[#?????????# ### | | ?????????????????????????# #????#=#?????????# #?? | | ?????????????????????????# #????# #?????????# #?? | | ?????????????????????????# #????# #####?????# #?? | | ?????????????????????????# #????# ^#?????# #?? | | ?????????????????????????# #????##### #?????# #?? | | ?????????????????????????# #????????# #?????# #?? | | ?????????????????????????# #????????# #?????# #?? | | ?????????????????????????# #????????# #?????# #?? | | ????????????????????????##;########## ####### #?? | | ????????????????????????# #?? | | ????????????????????????# #?? | | ????????????????????????# ######### ##########?? | | ????????????????????????# #???????# #??????????? | | ????????????????????????# #???????# #??????????? | | ????????????????????????# #???????# #??????????? | | ??????????????????####??# #???????# #??????????? | | ??????????????#???# ?# #???????# #??????????? | | ?????????????## ## ## ##??????# #??????????? | | ?????????????# g ######## #??????????? | | ????????? g #??????????? | | ????????? g %= #??????????? | | ??????????#### ## ##@^ ###########??????????? | | ?????????????# ???# ?#ppY#????????????????????? | | ????????????g???? ? Y!! ???????????????????? | | ????????????g?? p #??????????????????? | | ????????????g? #??????????????????? | | ?????????????" #??????????????????? | | ?????????????# ## ## ###??????????????????? | | ?????????????# ?# ?# #????????????????????? | | ?????????????# ? ? #????????????????????? | | ???????????????? ?? #????????????????????? | | ??????????????? ? #????????????????????? | | ??????????????? ## ??## #????????????????????? | | ??????????????????# ???# #????????????????????? | | ???????????????????#????# #????????????????????? | | ????????????????????????# #????????????????????? | | ????????????????????????? ?????????????????????? | | ?????????????????????????????????????????????????? | | ?????????????????????????????????????????????????? | | ?????????????????????????????????????????????????? | | ?????????????????????????????????????????????????? | | ?????????????????????????????????????????????????? | | ?????????????????????????????????????????????????? | | ?????????????????????????????????????????????????? | | ?????????????????????????????????????????????????? | | ?????????????????????????????????????????????????? | +----------------------------------------------------+ Best States ------------- Heat Dissipation 55 Energy Generation 16 Energy Capacity 390 Matter Stores 300 Matter Capacity 300 Sight Range 16 Terrain Scan Density 10 Armor Coverage 225 Resistance: TH 15 Evasion (%) 50 Targeting Accuracy 12 Core Analysis 6 Recoil Reduction 2 Authchip Count 14 Item Schematics ----------------- None Robot Schematics ------------------ None Fabricated ------------ Nothing Repaired ---------- Nothing Alien Tech Used ----------------- None Achievements -------------- None Challenges ------------ None Game ------ Seed ScatterSpectralClaw Manual? 0 Play Time 00:30:47 Cumulative 360.8 hours Start 2025.10.07 @ 05:14:02 End 2025.10.07 @ 09:30:19 Sessions 4 Manual Loads 0 Difficulty Rogue Special Mode None Game No. 477 Rogue 477 Adventurer 0 Explorer 0 Win Type - Total 11 Types 6/0/1/2/1/0/1/0/0/0 Lore% 87 Gallery% 83 Achievement% 70 Wizard Run 0 Options --------- Layout 0 ASCII 0 Keyboard 0 Movement Mouse Keybinds 0 Fullscreen 1 Font 24/Terminus Map View 76x50 Zoom Use 0% Tactical HUD 1 Map Filters NONE Filters NONE Steam 1 RUN: decf2493-9eb3-4ff3-a75e-add2a1c81232